bitfinex/quotes_ETHUSD_20241225
["timestamp","ask_amount","ask_price","bid_price","bid_amount"]
[1735117150730,1.38709871,3490.8,3490.6,0.791]
[1735117151045,1.38709871,3490.8,3490.7,2.86475]
[1735117151342,1.38709871,3490.8,3490.7,3.65575]
[1735117151498,1.38709871,3490.8,3490.7,4.20575]
[1735117152203,1.19781242,3492.0,3490.8,12.47567]
[1735117152440,1.19781242,3492.0,3490.9,1.06655686]
[1735117152603,1.19781242,3492.0,3491.0,0.791]
[1735117153811,2.8636,3492.1,3491.0,0.791]
[1735117154956,2.8637,3492.0,3491.0,0.791]
[1735117155171,2.8637,3492.0,3491.1,0.45515776]
[1735117155517,3.55978563,3492.4,3491.1,0.45515776]
[1735117155716,2.86377,3491.9,3491.1,0.45515776]
[1735117156665,2.86403,3491.6,3491.0,0.791]
[1735117156820,0.7517,3492.0,3491.0,0.791]
[1735117157318,2.86377,3491.9,3491.0,0.791]
[1735117158853,2.86407,3491.6,3491.0,0.791]
[1735117160068,2.86413,3491.5,3491.0,0.791]
[1735117160469,2.86435,3491.2,3490.5,0.7775]
[1735117160979,2.86452,3491.0,3490.5,0.7775]
[1735117161189,2.86474,3490.8,3490.5,0.7775]
[1735117162012,0.7517,3491.7,3490.5,0.7775]
[1735117162308,2.86414,3491.5,3490.6,0.7775]
[1735117163596,2.86393,3491.7,3490.7,0.80614314]
[1735117163982,2.86393,3491.7,3490.7,0.7775]
[1735117164806,2.86377,3491.9,3490.7,0.7775]
[1735117164983,2.86401,3491.6,3490.7,0.7775]
[1735117167587,2.86411,3491.5,3490.7,0.7775]
[1735117169300,2.86396,3491.7,3490.7,0.7775]
[1735117172528,2.86406,3491.6,3490.7,0.7775]
[1735117172822,2.86411,3491.5,3490.7,0.7775]
[1735117173025,2.86421,3491.4,3490.7,0.7775]
[1735117173328,2.86421,3491.4,3490.7,2.03725]
[1735117174225,2.86421,3491.4,3490.4,9.5888]
[1735117174226,3.63851,3491.4,3490.4,9.5888]
[1735117174427,2.86454,3491.0,3490.4,0.7688]
[1735117175711,2.86432,3491.3,3490.4,0.7688]
[1735117176027,2.86435,3491.2,3490.4,0.7688]
[1735117179634,2.86452,3491.0,3490.4,0.7688]
[1735117181413,2.86482,3490.7,3490.4,0.7688]
[1735117183042,0.286452,3491.0,3490.4,0.7688]
[1735117183043,3.151032,3491.0,3490.4,0.7688]
[1735117183542,1.19781242,3491.7,3490.4,0.7688]
[1735117183543,0.7937,3491.5,3490.4,0.7688]
[1735117183847,2.86435,3491.2,3490.4,0.7688]
[1735117184401,2.86435,3491.2,3490.5,0.02721774]
[1735117184624,2.86435,3491.2,3490.6,0.7726]
[1735117186620,2.86443,3491.1,3490.6,0.7726]
[1735117188539,0.7937,3491.5,3490.6,0.7726]
[1735117188869,2.86437,3491.2,3490.6,0.7726]
[1735117196777,1.19781242,3491.4,3490.6,0.7726]
[1735117197341,1.19781242,3491.3,3490.6,0.7726]
[1735117198644,2.86418,3491.4,3490.7,1.49089955]
[1735117198849,2.86418,3491.4,3490.8,0.8234]
[1735117200020,2.86441,3491.2,3490.8,0.8234]
[1735117200202,2.86449,3491.1,3490.6,0.8234]
[1735117200814,1.39767111,3491.4,3490.6,0.8234]
[1735117201026,2.86451,3491.0,3490.6,0.8234]
[1735117201241,2.86459,3490.9,3490.6,0.8234]
[1735117202135,3.27083024,3490.9,3490.3,0.8234]
[1735117202275,2.86473,3490.8,3490.3,0.8234]
[1735117203208,1.19781242,3490.8,3490.3,0.8234]
[1735117204017,1.19781242,3490.8,3490.5,0.8234]
[1735117204223,1.19781242,3490.8,3490.7,3.68815]
[1735117204374,1.19781242,3490.8,3490.7,39.343463]
[1735117204569,1.19781242,3490.8,3490.7,4.343463]
[1735117204887,1.19781242,3491.4,3490.8,0.8234]
[1735117206204,1.79671864,3491.6,3490.9,0.99420665]
[1735117206205,1.19781242,3491.6,3490.9,0.99420665]
[1735117206520,1.19781242,3491.6,3491.0,1.20462995]
[1735117206728,1.19781242,3491.6,3491.2,2.86434]
[1735117206910,1.19781242,3491.6,3491.3,0.8234]
[1735117207110,1.19781242,3491.6,3491.1,0.8234]
[1735117207321,1.19781242,3491.6,3491.5,0.8234]
[1735117207530,2.56732264,3491.6,3491.5,1.192153]
[1735117208205,2.56732264,3491.6,3491.5,0.8234]
[1735117208905,2.56732264,3491.6,3491.2,0.8234]
[1735117209394,2.86388,3491.8,3491.2,2.01901867]
[1735117210688,2.86369,3492.0,3491.2,2.01901867]
[1735117210977,1.19781242,3491.9,3491.2,0.8234]
[1735117211235,4.06159242,3491.9,3491.2,0.8234]
[1735117211552,4.96816601,3491.9,3491.2,0.8234]
[1735117212260,3.77035359,3491.9,3491.2,0.8234]
[1735117215946,1.19781242,3492.1,3491.2,0.8234]
[1735117216095,4.06141242,3492.1,3491.2,0.8234]
[1735117216548,1.19781242,3492.1,3491.2,0.8234]
[1735117216705,1.19781242,3492.1,3491.3,0.02863884]
[1735117216908,1.19781242,3492.1,3491.2,3.6877]
[1735117217141,1.19781242,3492.1,3491.3,0.02863884]
[1735117217448,1.19781242,3492.1,3491.4,0.7517]
[1735117217649,1.37194943,3492.0,3491.4,0.7517]
[1735117218744,1.19781242,3492.2,3491.5,0.7517]
[1735117220106,2.86336,3492.4,3491.5,0.7517]
[1735117220305,2.86336,3492.4,3491.5,1.28168005]
[1735117225319,2.86336,3492.4,3491.6,0.7517]
[1735117225942,1.19781242,3492.6,3491.7,0.02863657]
[1735117226108,1.19781242,3492.6,3491.8,0.7517]
[1735117228158,2.86319,3492.7,3491.8,0.7517]
[1735117228447,1.19781242,3492.8,3491.8,2.8638]
[1735117228658,1.19781242,3492.8,3492.0,0.7974]
[1735117229555,2.86298,3492.9,3492.0,0.7974]
[1735117231660,4.06062242,3493.1,3492.1,0.7974]
[1735117231862,1.19781242,3493.1,3492.5,2.86326]
[1735117232157,1.19781242,3493.1,3491.9,0.28638]
[1735117232158,1.19781242,3493.1,3492.7,0.7974]
[1735117233210,0.55,3493.2,3492.7,0.7974]
[1735117237358,2.34387123,3494.1,3492.7,0.7974]
[1735117237593,2.34387123,3494.1,3493.9,0.7974]
[1735117237877,1.145834,3494.1,3494.0,3.7974]
[1735117238194,1.19803723,3494.2,3494.1,0.7974]
[1735117239964,2.39607447,3494.5,3494.1,0.7974]
[1735117239965,0.55,3495.0,3494.1,0.7974]
[1735117240586,0.55,3494.9,3494.1,0.7974]
[1735117241344,0.55,3494.9,3494.1,1.1134688]
[1735117244494,2.86108,3495.2,3494.1,1.1134688]
[1735117244495,0.55,3495.1,3494.1,1.1134688]
[1735117244787,0.55,3495.1,3494.2,0.8159]
[1735117247315,3.41115,3495.1,3494.2,0.8159]
[1735117249921,3.41115,3495.1,3494.1,0.3160688]
[1735117249922,2.86164,3494.5,3493.9,0.8159]
[1735117250135,0.55,3494.4,3493.9,0.8159]
[1735117251194,3.952395,3495.0,3493.9,0.8159]
[1735117251195,0.55,3494.6,3493.9,0.8159]
[1735117252435,1.091115,3495.0,3493.9,0.8159]
[1735117252436,0.55,3494.8,3493.9,0.8159]
[1735117252675,2.8614,3494.8,3493.9,0.8159]
[1735117252956,2.8614,3494.8,3493.9,1.183725]
[1735117257216,2.8614,3494.8,3494.0,0.8159]
[1735117258650,2.86151,3494.7,3494.0,0.8159]
[1735117262232,0.55,3494.9,3494.0,0.8159]
[1735117262955,0.55,3495.1,3494.0,0.8159]
[1735117263365,1.03182897,3495.1,3494.0,1.5204945]
[1735117263768,2.86148,3494.7,3494.0,1.5204945]
[1735117264090,2.86148,3494.7,3494.0,0.8159]
[1735117264693,0.55,3494.9,3494.0,0.8159]
[1735117264874,0.8318,3494.2,3493.5,0.7662]
[1735117265085,2.86216,3493.9,3493.5,0.7662]
[1735117266274,0.55,3494.1,3493.5,0.7662]
[1735117266480,2.86219,3493.9,3493.5,0.7662]
[1735117266789,0.55,3494.1,3493.0,3.0]
[1735117266790,0.55,3493.7,3493.0,0.7662]
[1735117267151,2.86258,3493.4,3492.5,8.82]
[1735117267460,2.86258,3493.4,3492.6,0.7662]
[1735117269467,2.86238,3493.6,3492.6,0.7662]
[1735117269755,0.55,3493.7,3492.6,0.7662]
[1735117269987,0.55,3493.7,3492.8,0.7662]
[1735117269988,2.86249,3493.5,3492.8,0.7662]
[1735117272790,2.86266,3493.3,3492.8,0.7662]
[1735117273195,2.86237,3493.6,3492.8,0.7662]
[1735117273400,2.86273,3493.2,3492.8,0.7662]
[1735117273578,2.86285,3493.1,3492.8,0.7662]
[1735117277893,2.86262,3493.3,3492.8,0.7662]
[1735117278672,2.86262,3493.3,3492.2,0.7989]
[1735117278673,0.805,3493.3,3492.2,0.7989]
[1735117278875,2.86311,3492.7,3492.2,0.7989]
[1735117279116,2.86316,3492.7,3492.2,0.7989]
[1735117279283,0.805,3493.3,3492.2,0.7989]
[1735117279491,2.86328,3492.5,3492.2,0.7989]
[1735117281027,2.86295,3492.9,3492.2,0.7989]
[1735117282233,2.86281,3493.1,3492.2,0.7989]
[1735117283334,0.805,3493.5,3492.2,0.7989]
[1735117283483,2.86319,3492.6,3492.2,0.7989]
[1735117283913,3.66801,3492.9,3492.2,0.7989]
[1735117284118,0.7913,3493.2,3492.2,0.7989]
[1735117284332,2.8629,3493.0,3492.2,0.7989]
[1735117284936,2.86295,3492.9,3492.3,0.7506]
[1735117288892,2.86303,3492.8,3492.3,0.7506]
[1735117289390,2.86314,3492.7,3492.3,0.7506]
[1735117290449,2.86314,3492.7,3491.8,1.2612314]
[1735117290450,0.55,3493.1,3492.0,0.8121]
[1735117290657,2.86332,3492.5,3492.0,0.8121]
[1735117291608,2.86332,3492.5,3492.0,1.90143314]
[1735117293225,2.86332,3492.5,3492.0,0.8121]
[1735117299908,2.86332,3492.5,3492.0,1.1121]
[1735117307483,0.55,3492.8,3492.0,1.1121]
[1735117307760,2.8636,3492.1,3492.0,0.3]
[1735117307964,3.6645,3492.1,3492.0,0.3]
[1735117309125,2.8636,3492.1,3492.0,0.3]
[1735117309355,2.86316,3492.7,3492.0,0.3]
[1735117309573,3.26927972,3492.7,3492.1,0.8181]
[1735117310071,2.86347,3492.3,3492.0,0.3]
[1735117311986,3.26927972,3492.7,3492.0,0.3]
[1735117312169,2.86352,3492.2,3492.0,0.3]
[1735117312354,2.86336,3492.4,3492.0,0.3]
[1735117314456,2.86344,3492.3,3492.0,0.3]
[1735117320313,1.19803723,3492.8,3492.1,0.8002]
[1735117320468,1.19803723,3492.8,3492.2,0.8002]
[1735117322215,2.86294,3493.0,3492.3,2.48323613]
[1735117323419,2.86294,3493.0,3492.4,0.99329445]
[1735117323923,2.86297,3492.9,3492.4,0.99329445]
[1735117324967,2.86297,3492.9,3492.5,0.99329445]
[1735117325632,0.40610072,3492.9,3492.5,0.99329445]
[1735117325772,2.86319,3492.6,3492.5,0.99329445]
[1735117327526,2.86319,3492.6,3492.4,1.48994168]
[1735117327527,2.86345,3492.3,3492.1,0.99329445]
[1735117328678,2.86345,3492.3,3492.0,1.78994168]
[1735117330327,2.86353,3492.2,3492.0,1.78994168]
[1735117330688,2.8636,3492.1,3492.0,1.78994168]
[1735117331375,2.8636,3492.1,3492.0,0.3]
[1735117332900,1.19803723,3492.4,3492.0,0.3]
[1735117333244,1.19803723,3492.4,3492.1,0.8002]
[1735117333743,4.06132723,3492.5,3492.1,0.8002]
[1735117334932,2.86338,3492.4,3492.1,0.8002]
[1735117335134,0.8198,3492.4,3492.0,0.3]
[1735117335337,2.8636,3492.1,3492.0,0.3]
[1735117335542,3.6834,3492.1,3492.0,0.3]
[1735117336004,4.2334,3492.1,3492.0,0.3]
[1735117336328,4.943081,3492.1,3492.0,0.3]
[1735117339184,6.14158284,3492.1,3492.0,0.3]
[1735117340336,4.943081,3492.1,3492.0,0.3]
[1735117341420,6.14158284,3492.1,3492.0,0.3]
[1735117342492,4.943081,3492.1,3492.0,0.3]
[1735117343486,4.393081,3492.1,3492.0,0.3]
[1735117348523,3.573281,3492.1,3492.0,0.3]
[1735117361330,4.331781,3492.1,3492.0,0.3]
[1735117362065,4.881781,3492.1,3492.0,0.3]
[1735117362231,7.881781,3492.1,3492.0,1e-05]
[1735117362669,7.881781,3492.1,3490.8,1.19760777]
[1735117362670,2.86459,3490.9,3490.8,1.19760777]
[1735117363279,0.7585,3491.3,3490.7,0.8153]
[1735117363468,2.86467,3490.8,3490.7,0.8153]
[1735117369242,2.86467,3490.8,3490.0,0.7639]
[1735117369451,2.86467,3490.8,3490.2,0.7639]
[1735117373772,2.86442,3491.1,3490.2,0.7639]
[1735117373978,2.86478,3490.7,3490.2,0.7639]
[1735117375538,1.32143992,3491.3,3490.2,0.7639]
[1735117375734,2.86461,3490.9,3490.2,0.7639]
[1735117381645,1.32143992,3491.3,3490.2,0.7639]
[1735117381806,3.23090449,3491.2,3490.2,0.7639]
[1735117381999,2.86475,3490.7,3490.2,0.7639]
[1735117384233,2.86461,3490.9,3490.2,0.7639]
[1735117387185,2.86445,3491.1,3490.2,0.7639]
[1735117387336,2.86438,3491.2,3490.3,0.83374784]
[1735117387533,2.86438,3491.2,3490.4,0.36988878]
[1735117387852,2.86438,3491.2,3490.5,0.8051]
[1735117388936,2.86438,3491.2,3490.6,0.99248902]
[1735117389135,2.86438,3491.2,3490.7,0.8051]
[1735117389550,2.86418,3491.4,3490.7,0.8051]
[1735117389789,1.19742302,3491.9,3490.8,0.8051]
[1735117389935,2.86401,3491.7,3490.8,0.83374273]
[1735117390140,2.86401,3491.7,3490.8,0.8051]
[1735117391892,2.86401,3491.7,3491.0,0.8051]
[1735117392233,2.86401,3491.7,3491.0,1.57361657]
[1735117393097,2.86413,3491.5,3491.0,1.57361657]
[1735117393241,2.86413,3491.5,3491.0,0.8051]
[1735117396194,2.86424,3491.4,3491.0,0.8051]
[1735117397641,2.86397,3491.7,3491.0,0.8051]
[1735117402761,2.86373,3492.0,3491.0,0.8051]
[1735117402968,0.8261,3492.0,3491.0,0.8051]
[1735117403183,0.25934599,3491.9,3491.0,0.8051]
[1735117404057,0.25934599,3491.9,3490.8,1.19760777]
[1735117404058,2.86442,3491.1,3490.8,1.19760777]
[1735117404355,2.86459,3490.9,3490.8,1.19760777]
[1735117405005,2.86459,3490.9,3490.7,1.19760777]
[1735117405856,0.7994,3491.3,3490.7,1.19760777]
[1735117406057,3.66407,3490.8,3490.7,1.19760777]
[1735117406284,4.030477,3490.8,3490.7,1.19760777]
[1735117406704,4.030477,3490.8,3490.3,0.9761056]
[1735117407000,2.865,3490.4,3490.3,0.9761056]
[1735117407205,4.2144,3490.4,3490.3,0.9761056]
[1735117408392,2.86546,3489.9,3489.4,1.19760777]
[1735117408893,0.7532,3489.8,3489.4,1.19760777]
[1735117409100,2.86574,3489.5,3489.4,1.19760777]
[1735117409470,2.86574,3489.5,3489.1,4.38130363]
[1735117409471,2.86598,3489.2,3488.9,1.19760777]
[1735117409999,3.61875,3489.8,3488.9,1.19760777]
[1735117410201,2.86592,3489.3,3488.9,1.19760777]
[1735117410553,0.7532,3489.8,3488.9,1.19760777]
[1735117410846,2.86607,3489.1,3488.7,0.7736]
[1735117411734,2.86607,3489.1,3488.3,0.7736]
[1735117412740,2.86607,3489.1,3488.3,1.62978744]
[1735117413097,3.4273244,3489.6,3488.3,1.62978744]
[1735117413438,2.86592,3489.3,3488.3,1.62978744]
[1735117414338,3.4273244,3489.6,3488.3,1.62978744]
[1735117414493,2.86598,3489.2,3488.3,1.62978744]
[1735117422159,3.4273244,3489.6,3488.5,0.7736]
[1735117422160,2.86568,3489.6,3488.5,0.7736]
[1735117422356,2.86568,3489.6,3488.6,2.86645]
[1735117422522,2.86568,3489.6,3488.7,0.7736]
[1735117422848,3.61871,3489.8,3488.7,0.7736]
[1735117423407,2.86557,3489.7,3488.7,0.7736]
[1735117423651,0.3905316,3489.6,3488.7,0.7736]
[1735117424182,3.2562116,3489.6,3488.7,0.7736]
[1735117424381,2.86568,3489.6,3488.7,0.7736]
[1735117429026,2.86576,3489.5,3488.7,0.7736]
[1735117436233,1.147238,3489.8,3488.8,0.02866168]
[1735117436440,2.86542,3489.9,3488.9,0.8277]
[1735117436677,2.86542,3489.9,3489.1,0.8277]
[1735117439555,1.71050054,3490.4,3489.1,0.8277]
[1735117439781,2.86557,3489.7,3489.1,0.8277]
[1735117440542,0.7545,3490.0,3489.1,0.8277]
[1735117440543,2.86581,3489.5,3489.1,0.8277]
[1735117443564,0.7545,3489.7,3489.1,0.8277]
[1735117443873,2.86591,3489.3,3488.5,0.7927]
[1735117447075,0.286591,3489.3,3488.5,0.7927]
[1735117447276,2.866,3489.2,3488.5,0.7927]
[1735117448109,3.62013,3489.7,3488.5,0.7927]
[1735117448110,2.86565,3489.6,3488.5,0.7927]
[1735117448421,3.62013,3489.7,3488.5,0.7927]
[1735117448422,2.86581,3489.5,3488.5,3.65923]
[1735117448635,2.86581,3489.5,3488.6,0.7927]
[1735117448792,2.86534,3490.0,3488.9,2.86622]
[1735117448994,0.7062813,3489.9,3489.0,0.7927]
[1735117449196,2.8655,3489.8,3489.0,0.7927]
[1735117449708,0.7062813,3489.9,3489.0,0.7927]
[1735117449709,1.4607813,3489.9,3489.0,0.7927]
[1735117449914,2.86577,3489.5,3489.0,0.7927]
[1735117450394,3.152347,3489.5,3489.0,0.7927]
[1735117450732,1.4607813,3489.9,3489.0,0.7927]
[1735117451029,6.44031499,3490.2,3489.0,0.7927]
[1735117451030,2.86528,3490.1,3489.0,0.7927]
[1735117451224,0.7545,3490.2,3488.5,1.22626725]
[1735117451225,4.06251302,3490.3,3489.3,0.7927]
[1735117451535,4.06251302,3490.3,3488.8,8.82]
[1735117451536,1.19742302,3490.0,3489.5,0.7927]
[1735117451939,1.19742302,3490.0,3489.5,0.82135133]
[1735117452639,1.19742302,3490.0,3489.5,0.7927]
[1735117452838,1.19742302,3490.0,3489.6,0.7927]
[1735117453150,1.19742302,3490.0,3489.7,0.7927]
[1735117453434,1.19742302,3490.6,3489.8,0.7927]
[1735117453992,4.06230302,3490.6,3489.8,0.7927]
[1735117454219,0.62257659,3490.5,3489.8,0.7927]
[1735117454423,3.48751659,3490.5,3489.8,0.7927]
[1735117454691,3.48751659,3490.5,3489.9,0.99391181]
[1735117455535,2.86501,3490.4,3489.9,0.99391181]
[1735117455899,0.62257659,3490.5,3489.8,0.7927]
[1735117456094,0.8154,3490.6,3489.8,0.7927]
[1735117458495,2.86519,3490.2,3489.8,0.7927]
[1735117459353,2.86502,3490.4,3489.8,0.7927]
[1735117460101,4.06217302,3490.7,3489.8,0.7927]
[1735117460914,1.19742302,3490.9,3489.8,0.7927]
[1735117461153,4.06201302,3490.9,3489.9,0.95403078]
[1735117461363,4.06201302,3490.9,3490.0,0.755]
[1735117462229,2.86467,3490.8,3490.0,1.74794184]
[1735117463418,2.86467,3490.8,3490.0,0.755]
[1735117463849,0.58535772,3491.0,3490.0,0.755]
[1735117464051,2.86511,3490.3,3490.0,0.755]
[1735117464909,2.86521,3490.2,3490.0,0.755]
[1735117465112,2.86524,3490.1,3490.0,0.755]
[1735117470196,2.86524,3490.1,3489.3,0.755]
[1735117471750,2.8651,3490.3,3489.5,0.755]
[1735117471931,2.8651,3490.3,3489.6,0.17479748]
[1735117473074,2.86489,3490.6,3489.7,0.825]
[1735117474038,2.86489,3490.6,3489.8,0.825]
[1735117478995,2.86467,3490.8,3489.8,0.85364994]
[1735117479290,2.86467,3490.8,3490.0,0.825]
[1735117479456,2.86467,3490.8,3490.0,0.85364992]
[1735117479661,1.19742302,3491.2,3490.0,0.85364992]
[1735117479840,2.86451,3491.0,3490.0,0.85364992]
[1735117480439,2.86465,3490.9,3490.0,0.825]
[1735117480690,2.86465,3490.9,3490.2,0.825]
[1735117483630,3.8307,3491.4,3490.2,0.825]
[1735117485331,2.86485,3490.6,3490.2,0.825]
[1735117486628,2.86469,3490.8,3490.2,0.825]
[1735117487311,2.86475,3490.7,3490.2,0.825]
[1735117487512,2.86485,3490.6,3490.2,0.825]
[1735117489729,2.86525,3490.1,3489.8,1.79641166]
[1735117494594,0.8102,3490.3,3489.8,1.79641166]
[1735117494794,2.86541,3489.9,3489.8,1.79641166]
[1735117495054,3.438467,3489.9,3489.8,1.79641166]
[1735117498537,2.86541,3489.9,3489.8,1.79641166]
[1735117500210,2.86541,3489.9,3489.6,2.39521555]
[1735117500211,2.86568,3489.6,3489.3,0.99388896]
[1735117500406,2.86576,3489.5,3489.3,0.99388896]
[1735117501358,2.86582,3489.4,3489.3,0.99388896]
[1735117501509,3.63242,3489.4,3489.3,0.99388896]
[1735117501910,3.63242,3489.4,3488.8,3.26502736]
[1735117501911,2.86598,3489.2,3488.8,2.07179392]
[1735117502525,0.7666,3489.4,3488.8,2.07179392]
[1735117502526,2.8659,3489.3,3488.8,1.30209392]
[1735117502729,2.86623,3488.9,3488.8,1.30209392]
[1735117502944,3.63283,3488.9,3488.8,1.30209392]
[1735117503565,3.63283,3488.9,3488.8,0.10011181]
[1735117505456,2.86623,3488.9,3488.8,0.10011181]
[1735117505664,2.86615,3489.0,3488.8,0.10011181]
[1735117505850,2.86615,3489.0,3488.3,0.7697]
[1735117506453,0.8024,3489.2,3488.3,0.7697]
[1735117506701,2.866,3489.2,3488.3,0.7697]
[1735117506870,2.866,3489.2,3488.5,0.7973]
[1735117510391,2.86584,3489.4,3488.5,0.7973]
[1735117510599,1.19740317,3489.9,3488.7,0.7973]
[1735117510779,1.19740317,3489.9,3489.2,0.7973]
[1735117511107,1.19740317,3489.9,3488.1,3.41490339]
[1735117511108,1.19740317,3489.9,3489.5,0.7973]
[1735117511317,1.19740317,3489.9,3489.7,0.7973]
[1735117511486,1.19740317,3489.9,3489.8,2.86549]
[1735117511682,1.19740317,3490.5,3489.9,0.7973]
[1735117511886,1.19740317,3490.5,3490.1,0.7973]
[1735117513334,2.86459,3490.9,3490.1,0.7973]
[1735117514683,0.43946095,3491.2,3490.1,0.7973]
[1735117515031,2.86468,3490.8,3490.1,0.7973]
[1735117515585,2.86479,3490.7,3490.1,0.7973]
[1735117518130,0.8012,3491.1,3490.1,0.7973]
[1735117518300,2.86504,3490.4,3490.1,0.7973]
[1735117520236,2.86467,3490.8,3489.2,1.20198211]
[1735117520566,0.43946095,3491.2,3489.3,0.7858]
[1735117520567,2.86551,3489.8,3489.3,0.7858]
[1735117521831,2.86533,3490.0,3489.3,0.7858]
[1735117522852,2.86533,3490.0,3489.3,0.81445503]
[1735117523068,2.86533,3490.0,3489.3,0.7858]
[1735117523223,2.86533,3490.0,3489.4,0.02864961]
[1735117524043,2.86533,3490.0,3489.4,0.41009457]
[1735117524339,0.8012,3490.4,3489.5,0.7858]
[1735117524340,2.86506,3490.4,3489.5,0.7858]
[1735117524557,2.86484,3490.6,3489.7,0.7858]
[1735117524766,2.86484,3490.6,3489.8,0.028652]
[1735117524968,2.86494,3490.5,3489.9,0.7858]
[1735117526026,2.86469,3490.8,3489.9,0.7858]
[1735117526248,2.86469,3490.8,3490.1,0.7858]
[1735117528188,2.86476,3490.7,3490.1,0.7858]
[1735117530050,2.86446,3491.1,3490.1,0.7858]
[1735117530228,2.86524,3490.2,3489.8,0.7798]
[1735117530589,2.86536,3490.0,3489.8,0.7798]
[1735117531952,2.86519,3490.2,3489.8,0.7798]
[1735117532156,0.7829,3490.7,3489.8,0.7798]
[1735117532350,2.86501,3490.4,3489.8,0.7798]
[1735117532572,1.19740317,3491.0,3489.8,1.15778]
[1735117532573,2.86487,3490.6,3489.8,1.15778]
[1735117532752,2.86469,3490.8,3489.9,0.7798]
[1735117533900,2.86451,3491.0,3490.0,0.80123075]
[1735117534053,2.86426,3491.3,3490.0,0.7798]
[1735117534389,1.19740317,3491.6,3490.6,0.7798]
[1735117534559,2.86451,3491.0,3490.6,0.7798]
[1735117539995,2.86436,3491.2,3490.6,0.7798]
[1735117542778,3.7829,3492.0,3490.6,0.7798]
[1735117542977,1.19740317,3492.1,3490.8,0.7798]
[1735117543279,3.0,3492.2,3491.0,0.7798]
[1735117543280,2.86405,3491.6,3491.0,0.7798]
[1735117543642,2.86384,3491.9,3491.1,0.02864277]
[1735117543894,2.86384,3491.9,3491.2,0.7852]
[1735117544252,0.57110733,3492.2,3491.2,0.7852]
[1735117544604,2.86395,3491.7,3491.2,0.7852]
[1735117545695,2.86401,3491.6,3491.2,0.7852]
[1735117547020,0.7811,3492.0,3491.2,0.7852]
[1735117547208,2.86377,3491.9,3491.2,0.7852]
[1735117547867,2.86418,3491.4,3491.2,0.7852]
[1735117548076,2.86377,3491.9,3490.8,0.7852]
[1735117548292,2.86426,3491.4,3490.8,0.7852]
[1735117549278,2.86434,3491.2,3490.8,0.7852]
[1735117551409,2.86429,3491.3,3490.8,0.7852]
[1735117551778,2.86434,3491.2,3490.8,0.7852]
[1735117553444,2.86421,3491.4,3490.8,0.7852]
[1735117554578,2.86427,3491.3,3490.8,0.7852]
[1735117557713,2.86407,3491.6,3490.8,0.7852]
[1735117557915,2.86404,3491.6,3490.9,0.02841889]
[1735117558130,0.364487,3491.8,3490.8,0.7852]
[1735117558377,2.86411,3491.5,3490.8,0.7852]
[1735117559517,2.86405,3491.6,3490.8,0.7852]
[1735117559946,2.86416,3491.5,3490.8,0.7852]
[1735117560338,0.52067602,3491.7,3490.8,0.7852]
[1735117560649,2.8642,3491.4,3490.8,0.7852]
[1735117561051,2.8642,3491.4,3490.4,2.86499]
[1735117561052,2.86426,3491.3,3490.4,0.7731]
[1735117561199,2.86434,3491.2,3490.4,0.7731]
[1735117561399,2.86482,3490.7,3490.4,0.7731]
[1735117562007,0.8233,3491.0,3490.4,0.7731]
[1735117562253,0.8233,3491.0,3490.3,1.20198211]
[1735117562753,0.8233,3491.0,3489.9,1.97508211]
[1735117562976,0.8233,3490.9,3489.9,1.97508211]
[1735117563251,2.86525,3490.1,3489.9,1.97508211]
[1735117563459,2.86483,3490.6,3489.9,1.97508211]
[1735117563752,2.86509,3490.3,3489.9,1.97508211]
[1735117564248,2.86509,3490.3,3489.9,0.7731]
[1735117565016,0.368772,3490.8,3489.9,0.7731]
[1735117565220,0.8233,3490.6,3489.5,0.7731]
[1735117565421,0.8233,3490.4,3489.5,0.7731]
[1735117565621,2.86569,3489.6,3489.4,1.20198211]
[1735117565902,2.86574,3489.5,3489.4,1.20198211]
[1735117567576,2.86574,3489.5,3489.0,0.7731]
[1735117574797,0.8233,3489.8,3488.7,0.8188]
[1735117574949,2.86602,3489.2,3488.7,0.8188]
[1735117576101,2.86625,3488.9,3488.4,0.8188]
[1735117576595,2.86632,3488.8,3488.4,0.8188]
[1735117577601,2.86649,3488.6,3487.9,0.8188]
[1735117577895,2.86649,3488.6,3488.0,0.78677298]
[1735117579099,2.86631,3488.8,3488.0,0.78677298]
[1735117582206,0.7707,3489.2,3488.1,0.8188]
[1735117582794,2.86606,3489.1,3488.1,0.8188]
[1735117583000,2.86628,3488.9,3488.1,0.8188]
[1735117583212,2.86628,3488.9,3488.1,1.56893592]
[1735117584319,2.86632,3488.8,3488.1,1.56893592]
[1735117584965,2.86632,3488.8,3488.1,1.59760215]
[1735117585516,2.86615,3489.0,3488.1,1.59760215]
[1735117585677,2.86615,3489.0,3488.1,0.84746623]
[1735117587620,2.86623,3488.9,3488.1,0.84746623]
[1735117589884,2.86606,3489.1,3488.1,0.8188]
[1735117590084,2.86649,3488.6,3488.1,0.8188]
[1735117591817,2.86652,3488.6,3488.1,0.8188]
[1735117592018,0.7707,3489.2,3488.1,0.8188]
[1735117592607,0.7707,3489.2,3488.1,0.84746316]
[1735117592809,3.6367,3489.2,3488.2,0.8291]
[1735117593007,3.6367,3489.2,3488.4,0.8291]
[1735117593209,2.866,3489.2,3488.4,0.8291]
[1735117595444,2.86595,3489.3,3488.4,0.8291]
[1735117595743,2.86622,3489.0,3488.4,0.8291]
[1735117595945,0.7806,3489.1,3488.4,0.8291]
[1735117596093,2.86648,3488.6,3488.4,0.8291]
[1735117596293,2.86648,3488.6,3487.7,0.8291]
[1735117596623,0.7806,3489.1,3487.9,0.8291]
[1735117596624,2.86627,3488.9,3487.9,0.8291]
[1735117596823,2.86627,3488.9,3488.0,0.85776526]